[Event "Titled Tuesday Blitz April 4 Early 2023"]
[White "Zhigalko, Sergei"]
[Black "Itgelt, Khuyagtsogt"]
[WhiteFideId "13502956"]
[BlackFideId "4902912"]
[WhiteElo "2626"]
[BlackElo "2227"]
[Result "1-0"]
[Round "06"]
[TimeControl "180+2"]
[Date "2023.04.04"]
[WhiteClock "0:00:22"]
[BlackClock "0:00:04"]

1. e4 {[%clk 0:03:00]}  e6 {[%clk 0:02:47]} 2. d4 {[%clk 0:03:00]}  d5 {[%clk 0:02:48]} 3. e5 {[%clk 0:03:01]}  c5 {[%clk 0:02:48]} 4. c3 {[%clk 0:03:02]}  Bd7 {[%clk 0:02:47]} 5. Nf3 {[%clk 0:03:02]}  Qb6 {[%clk 0:02:47]} 6. Be2 {[%clk 0:03:01]}  Bb5 {[%clk 0:02:44]} 7. Bxb5+ {[%clk 0:03:01]}  Qxb5 {[%clk 0:02:45]} 8. a4 {[%clk 0:03:01]}  Qa6 {[%clk 0:02:43]} 9. dxc5 {[%clk 0:03:01]}  Bxc5 {[%clk 0:02:43]} 10. b4 {[%clk 0:03:01]}  Be7 {[%clk 0:02:44]} 11. Na3 {[%clk 0:03:01]}  Nd7 {[%clk 0:02:34]} 12. Nb5 {[%clk 0:03:01]}  Qb6 {[%clk 0:02:31]} 13. Be3 {[%clk 0:02:53]}  Qd8 {[%clk 0:02:23]} 14. Nxa7 {[%clk 0:02:44]}  f6 {[%clk 0:02:14]} 15. Nd4 {[%clk 0:02:20]}  Kf7 {[%clk 0:02:05]} 16. exf6 {[%clk 0:02:07]}  Ngxf6 {[%clk 0:02:00]} 17. Nab5 {[%clk 0:02:07]}  Ne5 {[%clk 0:01:46]} 18. O-O {[%clk 0:01:51]}  Qd7 {[%clk 0:01:40]} 19. Re1 {[%clk 0:01:42]}  Nc4 {[%clk 0:01:23]} 20. Bf4 {[%clk 0:01:41]}  e5 {[%clk 0:00:19]} 21. Bxe5 {[%clk 0:01:37]}  Nxe5 {[%clk 0:00:20]} 22. Rxe5 {[%clk 0:01:37]}  Rhe8 {[%clk 0:00:21]} 23. Qf3 {[%clk 0:01:28]}  Bf8 {[%clk 0:00:20]} 24. Rxe8 {[%clk 0:00:48]}  Rxe8 {[%clk 0:00:21]} 25. h3 {[%clk 0:00:48]}  Kg8 {[%clk 0:00:20]} 26. Rd1 {[%clk 0:00:43]}  Ne4 {[%clk 0:00:18]} 27. Nf5 {[%clk 0:00:42]}  Qf7 {[%clk 0:00:15]} 28. Ne3 {[%clk 0:00:32]}  Qxf3 {[%clk 0:00:03]} 29. gxf3 {[%clk 0:00:32]}  Ng5 {[%clk 0:00:04]} 30. Kg2 {[%clk 0:00:33]}  Ne6 {[%clk 0:00:04]} 31. Nxd5 {[%clk 0:00:32]}  Rd8 {[%clk 0:00:04]} 32. Kf1 {[%clk 0:00:21]}  Nf4 {[%clk 0:00:03]} 33. Nf6+ {[%clk 0:00:21]}  gxf6 {[%clk 0:00:04]} 34. Rxd8 {[%clk 0:00:22]} 1-0


[Site "https://www.chess.com"]

[Event "Titled Tuesday Blitz April 4 Early 2023"]
[White "Belozerov, Andrei"]
[Black "Gharibyan, Mamikon"]
[WhiteFideId "4120213"]
[BlackFideId "13308300"]
[WhiteElo "2373"]
[BlackElo "2445"]
[Result "1-0"]
[Round "06"]
[TimeControl "180+2"]
[Date "2023.04.04"]
[WhiteClock "0:00:06"]
[BlackClock "0:00:04"]

1. e4 {[%clk 0:02:59]}  e5 {[%clk 0:02:58]} 2. Nf3 {[%clk 0:02:58]}  Nc6 {[%clk 0:02:58]} 3. Bb5 {[%clk 0:02:58]}  a6 {[%clk 0:02:59]} 4. Ba4 {[%clk 0:02:59]}  Nf6 {[%clk 0:02:59]} 5. O-O {[%clk 0:02:58]}  Be7 {[%clk 0:02:55]} 6. Re1 {[%clk 0:02:58]}  b5 {[%clk 0:02:54]} 7. Bb3 {[%clk 0:02:58]}  d6 {[%clk 0:02:52]} 8. c3 {[%clk 0:02:58]}  O-O {[%clk 0:02:52]} 9. h3 {[%clk 0:02:58]}  Bb7 {[%clk 0:02:52]} 10. d3 {[%clk 0:02:52]}  Re8 {[%clk 0:02:49]} 11. Ng5 {[%clk 0:02:48]}  Rf8 {[%clk 0:02:49]} 12. Nf3 {[%clk 0:02:48]}  h6 {[%clk 0:02:45]} 13. Nbd2 {[%clk 0:02:48]}  Re8 {[%clk 0:02:45]} 14. Nf1 {[%clk 0:02:47]}  Bf8 {[%clk 0:02:45]} 15. Ng3 {[%clk 0:02:47]}  Na5 {[%clk 0:02:44]} 16. Bc2 {[%clk 0:02:46]}  c5 {[%clk 0:02:45]} 17. d4 {[%clk 0:02:39]}  cxd4 {[%clk 0:02:43]} 18. cxd4 {[%clk 0:02:39]}  exd4 {[%clk 0:02:42]} 19. Nxd4 {[%clk 0:02:31]}  Rc8 {[%clk 0:02:42]} 20. b3 {[%clk 0:02:23]}  d5 {[%clk 0:02:13]} 21. e5 {[%clk 0:02:23]}  Ne4 {[%clk 0:02:13]} 22. Nxe4 {[%clk 0:01:55]}  dxe4 {[%clk 0:02:14]} 23. Bxe4 {[%clk 0:01:52]}  Bxe4 {[%clk 0:01:46]} 24. Rxe4 {[%clk 0:01:50]}  Nc6 {[%clk 0:01:29]} 25. Bb2 {[%clk 0:01:34]}  Qd5 {[%clk 0:01:24]} 26. Qe2 {[%clk 0:01:27]}  Rxe5 {[%clk 0:01:19]} 27. Rxe5 {[%clk 0:01:13]}  Nxe5 {[%clk 0:01:08]} 28. Nf5 {[%clk 0:00:41]}  Nd3 {[%clk 0:00:42]} 29. Qg4 {[%clk 0:00:41]}  h5 {[%clk 0:00:09]} 30. Nh6+ {[%clk 0:00:36]}  Kh7 {[%clk 0:00:09]} 31. Qxc8 {[%clk 0:00:36]}  Bc5 {[%clk 0:00:04]} 32. Qf5+ {[%clk 0:00:27]}  Qxf5 {[%clk 0:00:03]} 33. Nxf5 {[%clk 0:00:27]}  Nxb2 {[%clk 0:00:04]} 34. Rc1 {[%clk 0:00:19]}  Bxf2+ {[%clk 0:00:04]} 35. Kf1 {[%clk 0:00:18]}  g6 {[%clk 0:00:03]} 36. Rc2 {[%clk 0:00:16]}  Nd3 {[%clk 0:00:02]} 37. Nd6 {[%clk 0:00:14]}  Bc5 {[%clk 0:00:01]} 38. Nb7 {[%clk 0:00:14]}  Bb4 {[%clk 0:00:02]} 39. Rc6 {[%clk 0:00:13]}  a5 {[%clk 0:00:01]} 40. Ra6 {[%clk 0:00:11]}  Kh6 {[%clk 0:00:02]} 41. Nxa5 {[%clk 0:00:11]}  Nc5 {[%clk 0:00:02]} 42. Ra7 {[%clk 0:00:11]}  Ne4 {[%clk 0:00:02]} 43. Nc6 {[%clk 0:00:11]}  Bc5 {[%clk 0:00:03]} 44. Rxf7 {[%clk 0:00:10]}  b4 {[%clk 0:00:03]} 45. Ne5 {[%clk 0:00:09]}  Kg5 {[%clk 0:00:03]} 46. Nd3 {[%clk 0:00:08]}  Bd6 {[%clk 0:00:04]} 47. Rd7 {[%clk 0:00:08]}  h4 {[%clk 0:00:03]} 48. Ke2 {[%clk 0:00:08]}  Bf8 {[%clk 0:00:03]} 49. Ke3 {[%clk 0:00:08]}  Nc3 {[%clk 0:00:04]} 50. Kd4 {[%clk 0:00:07]}  Kf5 {[%clk 0:00:04]} 51. Kc4 {[%clk 0:00:07]}  Nxa2 {[%clk 0:00:04]} 52. Rd5+ {[%clk 0:00:07]}  Ke4 {[%clk 0:00:04]} 53. Nc5+ {[%clk 0:00:07]}  Ke3 {[%clk 0:00:04]} 54. Ne6 {[%clk 0:00:07]}  Be7 {[%clk 0:00:05]} 55. Re5+ {[%clk 0:00:07]}  Kf2 {[%clk 0:00:05]} 56. Nf4 {[%clk 0:00:06]}  Bd6 {[%clk 0:00:05]} 57. Re2+ {[%clk 0:00:05]}  Kg3 {[%clk 0:00:05]} 58. Rxa2 {[%clk 0:00:06]}  Kxf4 {[%clk 0:00:02]} 59. Kd5 {[%clk 0:00:06]}  Bf8 {[%clk 0:00:02]} 60. Re2 {[%clk 0:00:05]}  Kg3 {[%clk 0:00:02]} 61. Ke4 {[%clk 0:00:05]}  g5 {[%clk 0:00:02]} 62. Kf5 {[%clk 0:00:05]}  Bh6 {[%clk 0:00:02]} 63. Kg6 {[%clk 0:00:05]}  Bg7 {[%clk 0:00:03]} 64. Kxg7 {[%clk 0:00:05]}  g4 {[%clk 0:00:01]} 65. hxg4 {[%clk 0:00:05]}  Kxg4 {[%clk 0:00:02]} 66. Re4+ {[%clk 0:00:05]}  Kg3 {[%clk 0:00:03]} 67. Rxb4 {[%clk 0:00:06]}  Kxg2 {[%clk 0:00:04]} 68. Rxh4 {[%clk 0:00:06]} 1-0


[Site "https://www.chess.com"]

[Event "Titled Tuesday Blitz April 4 Early 2023"]
[White "Timofeev, Artyom"]
[Black "Bilan, Danila"]
[WhiteFideId "4140419"]
[BlackFideId "24161918"]
[WhiteElo "2586"]
[BlackElo "2182"]
[Result "1-0"]
[Round "06"]
[TimeControl "180+2"]
[Date "2023.04.04"]
[WhiteClock "0:01:35"]
[BlackClock "0:00:43"]

1. c4 {[%clk 0:03:00]}  c6 {[%clk 0:03:00]} 2. e4 {[%clk 0:02:48]}  d5 {[%clk 0:02:58]} 3. exd5 {[%clk 0:02:47]}  cxd5 {[%clk 0:02:58]} 4. d4 {[%clk 0:02:47]}  Nf6 {[%clk 0:02:57]} 5. Nc3 {[%clk 0:02:47]}  Nc6 {[%clk 0:02:56]} 6. Bg5 {[%clk 0:02:45]}  e6 {[%clk 0:02:37]} 7. Nf3 {[%clk 0:02:42]}  Be7 {[%clk 0:02:33]} 8. c5 {[%clk 0:02:37]}  Ne4 {[%clk 0:02:15]} 9. Bxe7 {[%clk 0:02:36]}  Qxe7 {[%clk 0:02:12]} 10. Bd3 {[%clk 0:02:33]}  Nxc3 {[%clk 0:01:45]} 11. bxc3 {[%clk 0:02:33]}  O-O {[%clk 0:01:45]} 12. O-O {[%clk 0:02:32]}  b6 {[%clk 0:01:43]} 13. cxb6 {[%clk 0:02:26]}  axb6 {[%clk 0:01:43]} 14. Qc2 {[%clk 0:02:26]}  g6 {[%clk 0:01:32]} 15. Qe2 {[%clk 0:02:18]}  Ra3 {[%clk 0:01:24]} 16. Rfc1 {[%clk 0:02:17]}  Bd7 {[%clk 0:01:12]} 17. h4 {[%clk 0:02:15]}  Rfa8 {[%clk 0:01:03]} 18. Qd2 {[%clk 0:02:06]}  Qf6 {[%clk 0:00:58]} 19. Rcb1 {[%clk 0:02:05]}  Na5 {[%clk 0:00:53]} 20. Ne5 {[%clk 0:01:39]}  Be8 {[%clk 0:00:49]} 21. Qb2 {[%clk 0:01:37]}  b5 {[%clk 0:00:43]} 22. Qxa3 {[%clk 0:01:35]} 1-0


[Site "https://www.chess.com"]

[Event "Titled Tuesday Blitz April 4 Early 2023"]
[White "Sharapov, Evgeny"]
[Black "Samunenkov, Ihor"]
[WhiteFideId "14103133"]
[BlackFideId "14187086"]
[WhiteElo "2367"]
[BlackElo "2457"]
[Result "0-1"]
[Round "06"]
[TimeControl "180+2"]
[Date "2023.04.04"]
[WhiteClock "0:01:12"]
[BlackClock "0:01:57"]

1. e4 {[%clk 0:02:59]}  c5 {[%clk 0:02:59]} 2. Nf3 {[%clk 0:02:59]}  Nc6 {[%clk 0:03:00]} 3. d4 {[%clk 0:02:58]}  cxd4 {[%clk 0:03:01]} 4. Nxd4 {[%clk 0:02:58]}  Nf6 {[%clk 0:03:02]} 5. Nc3 {[%clk 0:02:58]}  e5 {[%clk 0:03:02]} 6. Ndb5 {[%clk 0:02:58]}  d6 {[%clk 0:03:03]} 7. Bg5 {[%clk 0:02:58]}  a6 {[%clk 0:03:03]} 8. Na3 {[%clk 0:02:58]}  b5 {[%clk 0:03:04]} 9. Nd5 {[%clk 0:02:58]}  Be7 {[%clk 0:03:05]} 10. Bxf6 {[%clk 0:02:58]}  Bxf6 {[%clk 0:03:05]} 11. c3 {[%clk 0:02:59]}  Rb8 {[%clk 0:03:05]} 12. Nc2 {[%clk 0:02:59]}  Bg5 {[%clk 0:03:05]} 13. a4 {[%clk 0:02:59]}  bxa4 {[%clk 0:03:06]} 14. Ncb4 {[%clk 0:02:59]}  Nxb4 {[%clk 0:03:03]} 15. cxb4 {[%clk 0:02:59]}  O-O {[%clk 0:03:03]} 16. Rxa4 {[%clk 0:02:54]}  a5 {[%clk 0:03:03]} 17. b5 {[%clk 0:02:43]}  Bd7 {[%clk 0:03:03]} 18. Nc3 {[%clk 0:02:36]}  d5 {[%clk 0:03:03]} 19. exd5 {[%clk 0:02:27]}  e4 {[%clk 0:03:03]} 20. Be2 {[%clk 0:02:22]}  e3 {[%clk 0:02:50]} 21. O-O {[%clk 0:02:11]}  exf2+ {[%clk 0:02:47]} 22. Kh1 {[%clk 0:02:11]}  Be3 {[%clk 0:02:42]} 23. Qd3 {[%clk 0:02:07]}  Bb6 {[%clk 0:02:24]} 24. Ne4 {[%clk 0:01:48]}  Re8 {[%clk 0:02:23]} 25. Nxf2 {[%clk 0:01:41]}  Bxf2 {[%clk 0:02:16]} 26. Rxf2 {[%clk 0:01:39]}  Bxb5 {[%clk 0:02:16]} 27. Qxb5 {[%clk 0:01:23]}  Rxb5 {[%clk 0:02:15]} 28. Bxb5 {[%clk 0:01:23]}  Qxd5 {[%clk 0:02:13]} 29. Bf1 {[%clk 0:01:18]}  Re1 {[%clk 0:02:08]} 30. Kg1 {[%clk 0:01:15]}  g6 {[%clk 0:02:05]} 31. b4 {[%clk 0:01:12]}  axb4 {[%clk 0:01:58]} 32. Rxb4 {[%clk 0:01:12]}  Rxf1+ {[%clk 0:01:57]} 0-1


[Site "https://www.chess.com"]

[Event "Titled Tuesday Blitz April 4 Early 2023"]
[White "Shvedova, Alexandra"]
[Black "Bronstein, Or"]
[WhiteFideId "54154782"]
[BlackFideId "2815770"]
[WhiteElo "2057"]
[BlackElo "2356"]
[Result "1-0"]
[Round "06"]
[TimeControl "180+2"]
[Date "2023.04.04"]
[WhiteClock "0:01:35"]
[BlackClock "0:00:42"]

1. d4 {[%clk 0:03:00]}  Nf6 {[%clk 0:02:57]} 2. c4 {[%clk 0:03:01]}  g6 {[%clk 0:02:58]} 3. Nf3 {[%clk 0:03:01]}  Bg7 {[%clk 0:02:58]} 4. g3 {[%clk 0:03:01]}  O-O {[%clk 0:02:59]} 5. Bg2 {[%clk 0:03:02]}  d6 {[%clk 0:03:00]} 6. O-O {[%clk 0:03:02]}  Nbd7 {[%clk 0:03:00]} 7. Nc3 {[%clk 0:03:02]}  e5 {[%clk 0:03:01]} 8. dxe5 {[%clk 0:02:55]}  dxe5 {[%clk 0:03:00]} 9. e4 {[%clk 0:02:54]}  Re8 {[%clk 0:02:59]} 10. h3 {[%clk 0:02:53]}  c6 {[%clk 0:02:58]} 11. Be3 {[%clk 0:02:53]}  Qe7 {[%clk 0:02:57]} 12. Qc2 {[%clk 0:02:52]}  h6 {[%clk 0:02:54]} 13. Rad1 {[%clk 0:02:50]}  Nc5 {[%clk 0:02:53]} 14. b4 {[%clk 0:02:45]}  Ne6 {[%clk 0:02:49]} 15. Nxe5 {[%clk 0:02:42]}  Qxb4 {[%clk 0:02:48]} 16. Rb1 {[%clk 0:02:26]}  Qa5 {[%clk 0:02:47]} 17. Nd3 {[%clk 0:02:21]}  Ng5 {[%clk 0:02:43]} 18. e5 {[%clk 0:02:18]}  Nd7 {[%clk 0:02:31]} 19. f4 {[%clk 0:02:15]}  Ne6 {[%clk 0:02:11]} 20. Ne4 {[%clk 0:02:14]}  Bf8 {[%clk 0:01:46]} 21. g4 {[%clk 0:01:57]}  Nec5 {[%clk 0:01:39]} 22. Ndxc5 {[%clk 0:01:47]}  Bxc5 {[%clk 0:01:37]} 23. Bxc5 {[%clk 0:01:42]}  Nxc5 {[%clk 0:01:38]} 24. Nf6+ {[%clk 0:01:42]}  Kf8 {[%clk 0:01:38]} 25. Nxe8 {[%clk 0:01:43]}  Kxe8 {[%clk 0:01:39]} 26. f5 {[%clk 0:01:42]}  g5 {[%clk 0:01:23]} 27. e6 {[%clk 0:01:42]}  fxe6 {[%clk 0:01:12]} 28. f6 {[%clk 0:01:42]}  Bd7 {[%clk 0:01:05]} 29. Qg6+ {[%clk 0:01:38]}  Kd8 {[%clk 0:01:04]} 30. Qg8+ {[%clk 0:01:37]}  Kc7 {[%clk 0:01:02]} 31. Qxa8 {[%clk 0:01:36]}  h5 {[%clk 0:00:43]} 32. f7 {[%clk 0:01:36]}  hxg4 {[%clk 0:00:42]} 33. f8=Q {[%clk 0:01:35]} 1-0


[Site "https://www.chess.com"]

[Event "Titled Tuesday Blitz April 4 Early 2023"]
[White "polandchessplayer"]
[Black "Bowden, Karl"]
[BlackFideId "400548"]
[WhiteElo "2698"]
[BlackElo "2465"]
[Result "1-0"]
[Round "06"]
[TimeControl "180+2"]
[Date "2023.04.04"]
[WhiteClock "0:01:20"]
[BlackClock "0:00:16"]

1. c4 {[%clk 0:02:58]}  e5 {[%clk 0:02:59]} 2. Nc3 {[%clk 0:02:58]}  Nc6 {[%clk 0:03:00]} 3. Nf3 {[%clk 0:02:57]}  d6 {[%clk 0:02:58]} 4. g3 {[%clk 0:02:56]}  g6 {[%clk 0:02:56]} 5. Bg2 {[%clk 0:02:57]}  Bg7 {[%clk 0:02:56]} 6. O-O {[%clk 0:02:58]}  Nge7 {[%clk 0:02:49]} 7. d3 {[%clk 0:02:58]}  O-O {[%clk 0:02:48]} 8. a3 {[%clk 0:02:58]}  f5 {[%clk 0:02:46]} 9. Rb1 {[%clk 0:02:57]}  h6 {[%clk 0:02:09]} 10. Bd2 {[%clk 0:02:54]}  g5 {[%clk 0:02:06]} 11. b4 {[%clk 0:02:49]}  Ng6 {[%clk 0:02:02]} 12. b5 {[%clk 0:02:45]}  Nce7 {[%clk 0:01:52]} 13. Qb3 {[%clk 0:02:35]}  Kh8 {[%clk 0:01:50]} 14. Ne1 {[%clk 0:02:26]}  f4 {[%clk 0:01:47]} 15. Nc2 {[%clk 0:02:19]}  Rg8 {[%clk 0:01:45]} 16. Nd5 {[%clk 0:02:16]}  Nf5 {[%clk 0:01:41]} 17. e4 {[%clk 0:02:12]}  Nfh4 {[%clk 0:01:28]} 18. gxh4 {[%clk 0:01:49]}  Nxh4 {[%clk 0:01:27]} 19. d4 {[%clk 0:01:49]}  g4 {[%clk 0:00:58]} 20. Nxf4 {[%clk 0:01:45]}  exf4 {[%clk 0:00:47]} 21. Bxf4 {[%clk 0:01:42]}  Nf3+ {[%clk 0:00:41]} 22. Kh1 {[%clk 0:01:39]}  Nxd4 {[%clk 0:00:39]} 23. Nxd4 {[%clk 0:01:40]}  Bxd4 {[%clk 0:00:39]} 24. Bg3 {[%clk 0:01:32]}  Qf6 {[%clk 0:00:34]} 25. Qd3 {[%clk 0:01:28]}  Be5 {[%clk 0:00:30]} 26. f4 {[%clk 0:01:28]}  gxf3 {[%clk 0:00:28]} 27. Rxf3 {[%clk 0:01:28]}  Qe7 {[%clk 0:00:20]} 28. Rbf1 {[%clk 0:01:26]}  Be6 {[%clk 0:00:20]} 29. Bxe5+ {[%clk 0:01:25]}  dxe5 {[%clk 0:00:20]} 30. Rf6 {[%clk 0:01:25]}  Qg7 {[%clk 0:00:19]} 31. Qd2 {[%clk 0:01:21]}  Bxc4 {[%clk 0:00:18]} 32. Rxh6+ {[%clk 0:01:20]}  Qh7 {[%clk 0:00:16]} 33. Rxh7+ {[%clk 0:01:19]}  Kxh7 {[%clk 0:00:16]} 34. Rf6 {[%clk 0:01:20]} 1-0


[Site "https://www.chess.com"]

[Event "Titled Tuesday Blitz April 4 Early 2023"]
[White "Matinian, Nikita"]
[Black "Rosenberg, Evan S"]
[WhiteFideId "24129100"]
[BlackFideId "2019299"]
[WhiteElo "2422"]
[BlackElo "2233"]
[Result "1-0"]
[Round "06"]
[TimeControl "180+2"]
[Date "2023.04.04"]
[WhiteClock "0:00:14"]
[BlackClock "0:00:02"]

1. e4 {[%clk 0:02:57]}  e5 {[%clk 0:02:59]} 2. Nf3 {[%clk 0:02:56]}  Nc6 {[%clk 0:03:00]} 3. Bb5 {[%clk 0:02:57]}  Nf6 {[%clk 0:03:00]} 4. d3 {[%clk 0:02:56]}  Ne7 {[%clk 0:02:59]} 5. Nc3 {[%clk 0:02:54]}  c6 {[%clk 0:02:58]} 6. Ba4 {[%clk 0:02:54]}  d6 {[%clk 0:02:58]} 7. d4 {[%clk 0:02:51]}  Qc7 {[%clk 0:02:52]} 8. Bg5 {[%clk 0:02:46]}  h6 {[%clk 0:02:26]} 9. Bxf6 {[%clk 0:02:46]}  gxf6 {[%clk 0:02:27]} 10. O-O {[%clk 0:02:45]}  Rg8 {[%clk 0:02:24]} 11. Kh1 {[%clk 0:02:44]}  Ng6 {[%clk 0:02:22]} 12. Nd5 {[%clk 0:02:32]}  Qd8 {[%clk 0:02:17]} 13. Ne3 {[%clk 0:02:30]}  Nf4 {[%clk 0:02:10]} 14. c4 {[%clk 0:02:30]}  h5 {[%clk 0:01:42]} 15. g3 {[%clk 0:02:18]}  Nh3 {[%clk 0:01:08]} 16. Nh4 {[%clk 0:02:17]}  Bh6 {[%clk 0:00:57]} 17. Nef5 {[%clk 0:02:04]}  Bg5 {[%clk 0:00:41]} 18. Qxh5 {[%clk 0:01:58]}  Bxh4 {[%clk 0:00:35]} 19. Qxh4 {[%clk 0:01:40]}  Bxf5 {[%clk 0:00:32]} 20. exf5 {[%clk 0:01:40]}  Ng5 {[%clk 0:00:31]} 21. f4 {[%clk 0:01:40]}  exf4 {[%clk 0:00:18]} 22. gxf4 {[%clk 0:01:35]}  Qa5 {[%clk 0:00:18]} 23. fxg5 {[%clk 0:01:29]}  Qxa4 {[%clk 0:00:18]} 24. Rae1+ {[%clk 0:01:29]}  Kd7 {[%clk 0:00:18]} 25. gxf6 {[%clk 0:01:26]}  Rae8 {[%clk 0:00:17]} 26. Rxe8 {[%clk 0:00:40]}  Rxe8 {[%clk 0:00:15]} 27. b3 {[%clk 0:00:37]}  Qxa2 {[%clk 0:00:15]} 28. Qh5 {[%clk 0:00:35]}  Qe2 {[%clk 0:00:12]} 29. Qxe2 {[%clk 0:00:33]}  Rxe2 {[%clk 0:00:11]} 30. Rg1 {[%clk 0:00:30]}  a5 {[%clk 0:00:09]} 31. Rg7 {[%clk 0:00:29]}  Ke8 {[%clk 0:00:09]} 32. Rg8+ {[%clk 0:00:30]}  Kd7 {[%clk 0:00:08]} 33. Rf8 {[%clk 0:00:30]}  Rb2 {[%clk 0:00:06]} 34. Rxf7+ {[%clk 0:00:30]}  Ke8 {[%clk 0:00:04]} 35. Rxb7 {[%clk 0:00:29]}  a4 {[%clk 0:00:04]} 36. Re7+ {[%clk 0:00:29]}  Kf8 {[%clk 0:00:04]} 37. bxa4 {[%clk 0:00:30]}  Rb4 {[%clk 0:00:03]} 38. a5 {[%clk 0:00:29]}  Ra4 {[%clk 0:00:02]} 39. Ra7 {[%clk 0:00:27]}  Rxc4 {[%clk 0:00:02]} 40. a6 {[%clk 0:00:28]}  Ra4 {[%clk 0:00:01]} 41. Kg2 {[%clk 0:00:27]}  c5 {[%clk 0:00:02]} 42. dxc5 {[%clk 0:00:27]}  dxc5 {[%clk 0:00:03]} 43. Kg3 {[%clk 0:00:27]}  c4 {[%clk 0:00:04]} 44. h4 {[%clk 0:00:27]}  c3 {[%clk 0:00:05]} 45. h5 {[%clk 0:00:19]}  c2 {[%clk 0:00:05]} 46. Rc7 {[%clk 0:00:20]}  Rxa6 {[%clk 0:00:05]} 47. Rxc2 {[%clk 0:00:20]}  Rxf6 {[%clk 0:00:05]} 48. Kg4 {[%clk 0:00:19]}  Kg7 {[%clk 0:00:05]} 49. Kg5 {[%clk 0:00:18]}  Rf7 {[%clk 0:00:04]} 50. h6+ {[%clk 0:00:19]}  Kh7 {[%clk 0:00:05]} 51. Rc6 {[%clk 0:00:19]}  Ra7 {[%clk 0:00:04]} 52. Re6 {[%clk 0:00:19]}  Rb7 {[%clk 0:00:04]} 53. Kf4 {[%clk 0:00:19]}  Ra7 {[%clk 0:00:04]} 54. Ke5 {[%clk 0:00:19]}  Ra5+ {[%clk 0:00:03]} 55. Ke4 {[%clk 0:00:19]}  Ra4+ {[%clk 0:00:03]} 56. Ke5 {[%clk 0:00:19]}  Ra5+ {[%clk 0:00:04]} 57. Kf6 {[%clk 0:00:19]}  Kxh6 {[%clk 0:00:03]} 58. Ke7+ {[%clk 0:00:19]}  Kg5 {[%clk 0:00:03]} 59. f6 {[%clk 0:00:19]}  Ra7+ {[%clk 0:00:03]} 60. Kf8 {[%clk 0:00:18]}  Kg6 {[%clk 0:00:03]} 61. f7+ {[%clk 0:00:16]}  Kf5 {[%clk 0:00:03]} 62. Rh6 {[%clk 0:00:14]}  Ra8+ {[%clk 0:00:02]} 63. Kg7 {[%clk 0:00:14]} 1-0


[Site "https://www.chess.com"]

[Event "Titled Tuesday Blitz April 4 Early 2023"]
[White "Vidit, Santosh Gujrathi"]
[Black "Martic, Ivan"]
[WhiteFideId "5029465"]
[BlackFideId "929301"]
[WhiteElo "2651"]
[BlackElo "2360"]
[Result "1-0"]
[Round "06"]
[TimeControl "180+2"]
[Date "2023.04.04"]
[WhiteClock "0:00:19"]
[BlackClock "0:00:03"]

1. d4 {[%clk 0:03:00]}  Nf6 {[%clk 0:02:59]} 2. Nf3 {[%clk 0:03:00]}  g6 {[%clk 0:02:59]} 3. g3 {[%clk 0:03:00]}  Bg7 {[%clk 0:02:59]} 4. Bg2 {[%clk 0:03:01]}  O-O {[%clk 0:03:00]} 5. c4 {[%clk 0:03:01]}  d6 {[%clk 0:03:00]} 6. O-O {[%clk 0:03:00]}  Nc6 {[%clk 0:03:00]} 7. Nc3 {[%clk 0:02:56]}  a6 {[%clk 0:02:59]} 8. d5 {[%clk 0:02:54]}  Na5 {[%clk 0:02:59]} 9. b3 {[%clk 0:02:53]}  c5 {[%clk 0:02:57]} 10. dxc6 {[%clk 0:02:53]}  Nxc6 {[%clk 0:02:57]} 11. Bg5 {[%clk 0:02:53]}  Bf5 {[%clk 0:02:45]} 12. Rc1 {[%clk 0:02:46]}  Rb8 {[%clk 0:02:39]} 13. Qd2 {[%clk 0:02:28]}  Re8 {[%clk 0:02:33]} 14. Rfd1 {[%clk 0:02:22]}  b5 {[%clk 0:01:50]} 15. Nh4 {[%clk 0:02:12]}  Bd7 {[%clk 0:01:31]} 16. c5 {[%clk 0:02:12]}  b4 {[%clk 0:01:22]} 17. Na4 {[%clk 0:02:11]}  d5 {[%clk 0:00:53]} 18. Bxf6 {[%clk 0:01:41]}  exf6 {[%clk 0:00:34]} 19. Qxd5 {[%clk 0:01:41]}  Re7 {[%clk 0:00:26]} 20. Nb6 {[%clk 0:01:07]}  Be8 {[%clk 0:00:25]} 21. Qc4 {[%clk 0:00:59]}  Qc7 {[%clk 0:00:15]} 22. Nd5 {[%clk 0:00:59]}  Qe5 {[%clk 0:00:15]} 23. Nxe7+ {[%clk 0:00:57]}  Qxe7 {[%clk 0:00:16]} 24. Rd6 {[%clk 0:00:55]}  Qc7 {[%clk 0:00:15]} 25. Bxc6 {[%clk 0:00:43]}  Bxc6 {[%clk 0:00:16]} 26. Nf3 {[%clk 0:00:42]}  Rc8 {[%clk 0:00:13]} 27. Qxb4 {[%clk 0:00:36]}  f5 {[%clk 0:00:10]} 28. Qb6 {[%clk 0:00:29]}  Bb7 {[%clk 0:00:07]} 29. Qxc7 {[%clk 0:00:27]}  Rxc7 {[%clk 0:00:08]} 30. Rd8+ {[%clk 0:00:18]}  Bf8 {[%clk 0:00:08]} 31. Ne5 {[%clk 0:00:18]}  Kg7 {[%clk 0:00:08]} 32. Rd7 {[%clk 0:00:18]}  Rxd7 {[%clk 0:00:02]} 33. Nxd7 {[%clk 0:00:19]}  Be7 {[%clk 0:00:03]} 34. c6 {[%clk 0:00:19]}  Bc8 {[%clk 0:00:03]} 35. Nb6 {[%clk 0:00:19]}  Ba3 {[%clk 0:00:03]} 36. Nxc8 {[%clk 0:00:19]}  Bxc1 {[%clk 0:00:03]} 37. Nd6 {[%clk 0:00:19]} 1-0


[Site "https://www.chess.com"]

[Event "Titled Tuesday Blitz April 4 Early 2023"]
[White "Ibrahimli, Murad"]
[Black "Ehlvest, Jaan"]
[WhiteFideId "13410229"]
[BlackFideId "4500016"]
[WhiteElo "2364"]
[BlackElo "2442"]
[Result "0-1"]
[Round "06"]
[TimeControl "180+2"]
[Date "2023.04.04"]
[WhiteClock "0:00:20"]
[BlackClock "0:00:20"]

1. d4 {[%clk 0:03:00]}  Nf6 {[%clk 0:02:50]} 2. c4 {[%clk 0:02:59]}  e6 {[%clk 0:02:49]} 3. Nf3 {[%clk 0:02:59]}  c5 {[%clk 0:02:48]} 4. d5 {[%clk 0:02:59]}  d6 {[%clk 0:02:48]} 5. Nc3 {[%clk 0:02:59]}  exd5 {[%clk 0:02:48]} 6. cxd5 {[%clk 0:02:59]}  g6 {[%clk 0:02:48]} 7. e4 {[%clk 0:02:53]}  Bg7 {[%clk 0:02:47]} 8. h3 {[%clk 0:02:53]}  O-O {[%clk 0:02:45]} 9. Bd3 {[%clk 0:02:54]}  b5 {[%clk 0:02:45]} 10. Nxb5 {[%clk 0:02:51]}  Re8 {[%clk 0:02:43]} 11. Nc3 {[%clk 0:02:47]}  Nxe4 {[%clk 0:02:42]} 12. Bxe4 {[%clk 0:02:48]}  Bxc3+ {[%clk 0:02:09]} 13. bxc3 {[%clk 0:02:48]}  Rxe4+ {[%clk 0:02:09]} 14. Be3 {[%clk 0:02:49]}  Ba6 {[%clk 0:02:08]} 15. Qc2 {[%clk 0:02:40]}  Qe8 {[%clk 0:02:01]} 16. Nd2 {[%clk 0:02:24]}  Rxe3+ {[%clk 0:01:38]} 17. fxe3 {[%clk 0:02:25]}  Qxe3+ {[%clk 0:01:37]} 18. Kd1 {[%clk 0:02:26]}  Be2+ {[%clk 0:01:02]} 19. Kc1 {[%clk 0:02:24]}  Bd3 {[%clk 0:01:02]} 20. Qb3 {[%clk 0:02:17]}  Nd7 {[%clk 0:00:57]} 21. Qb7 {[%clk 0:01:50]}  Rb8 {[%clk 0:00:46]} 22. Qxa7 {[%clk 0:01:38]}  Bf5 {[%clk 0:00:38]} 23. Qa5 {[%clk 0:00:37]}  Qd3 {[%clk 0:00:36]} 24. Kd1 {[%clk 0:00:35]}  Qc2+ {[%clk 0:00:36]} 25. Ke1 {[%clk 0:00:34]}  Re8+ {[%clk 0:00:35]} 26. Kf2 {[%clk 0:00:34]}  Qxd2+ {[%clk 0:00:35]} 27. Kg3 {[%clk 0:00:35]}  Re2 {[%clk 0:00:29]} 28. Rhg1 {[%clk 0:00:22]}  Qg5+ {[%clk 0:00:28]} 29. Kh2 {[%clk 0:00:20]}  Be4 {[%clk 0:00:20]} 0-1


[Site "https://www.chess.com"]